bitfinex/quotes_BTCUSD_20250330
["timestamp","ask_amount","ask_price","bid_price","bid_amount"]
[1743353134133,1e-07,82612.0,82611.0,0.73310926]
[1743353136170,1e-07,82612.0,82611.0,0.77594605]
[1743353136768,3e-07,82621.0,82620.0,0.434603]
[1743353136970,3e-07,82621.0,82620.0,0.79988783]
[1743353137288,3e-07,82621.0,82620.0,0.83771784]
[1743353138067,3e-07,82621.0,82620.0,0.87725869]
[1743353138290,3e-07,82621.0,82620.0,0.88925869]
[1743353138842,3e-07,82621.0,82620.0,0.98579784]
[1743353139103,3e-07,82621.0,82620.0,0.97379784]
[1743353139309,3e-07,82621.0,82620.0,0.97979784]
[1743353141109,3e-07,82621.0,82620.0,0.98579784]
[1743353142144,0.01857525,82644.0,82643.0,0.254104]
[1743353142348,0.01857525,82644.0,82643.0,1.09142883]
[1743353143083,0.01783222,82644.0,82643.0,1.09142883]
[1743353143687,0.0001686,82645.0,82644.0,0.0121]
[1743353143913,0.0001686,82645.0,82644.0,0.13238483]
[1743353144122,0.0001686,82645.0,82644.0,0.13480461]
[1743353144481,0.0001686,82645.0,82644.0,0.13238483]
[1743353144689,0.0001686,82645.0,82644.0,0.13480442]
[1743353144815,0.00021585,82645.0,82644.0,0.13480442]
[1743353145021,0.00021585,82645.0,82644.0,0.13680442]
[1743353145230,0.00021585,82645.0,82644.0,0.13480442]
[1743353145601,0.00021585,82645.0,82644.0,0.13880442]
[1743353145805,0.00021585,82645.0,82644.0,0.14380442]
[1743353148072,0.00021585,82645.0,82644.0,0.22600442]
[1743353148282,8.5e-07,82645.0,82644.0,0.22600442]
[1743353150069,8.5e-07,82645.0,82644.0,0.22100442]
[1743353150474,8.5e-07,82645.0,82644.0,0.22700442]
[1743353151281,8.5e-07,82645.0,82644.0,0.22300442]
[1743353151684,8.5e-07,82645.0,82644.0,0.22900442]
[1743353151890,0.00016935,82645.0,82644.0,0.22900442]
[1743353152396,0.00016935,82645.0,82644.0,0.25333872]
[1743353152620,0.00016935,82645.0,82644.0,0.25091913]
[1743353154219,0.00016935,82645.0,82644.0,0.61319037]
[1743353155038,0.00016935,82645.0,82644.0,0.67199037]
[1743353159493,0.00016935,82645.0,82644.0,0.30971913]
[1743353163246,0.00016935,82645.0,82644.0,0.31005593]
[1743353166415,0.00016935,82645.0,82644.0,0.30405593]
[1743353166915,0.00016935,82645.0,82644.0,0.42875593]
[1743353167120,0.00016935,82645.0,82644.0,0.43475593]
[1743353167324,0.00016935,82645.0,82644.0,0.43975593]
[1743353167641,0.00016935,82645.0,82644.0,0.43375593]
[1743353167817,0.00016935,82645.0,82644.0,0.43975593]
[1743353168178,0.00016935,82645.0,82644.0,0.43475593]
[1743353168380,0.00016935,82645.0,82644.0,0.30405593]
[1743353168611,0.00016935,82645.0,82644.0,0.30905593]
[1743353170111,0.00016935,82645.0,82644.0,0.38735593]
[1743353176377,0.00016935,82645.0,82644.0,0.38135593]
[1743353176616,0.00016935,82645.0,82644.0,0.37635593]
[1743353176858,0.00016935,82645.0,82644.0,0.38835593]
[1743353181104,0.00016935,82645.0,82644.0,0.16905593]
[1743353181511,0.00016935,82645.0,82644.0,0.31001593]
[1743353181686,0.10051848,82645.0,82644.0,0.28568163]
[1743353181889,0.14551848,82645.0,82644.0,0.0123368]
[1743353182095,0.25492457,82645.0,82644.0,0.1532968]
[1743353182287,0.2531465,82645.0,82644.0,0.1532968]
[1743353182822,0.4623749,82645.0,82644.0,0.1532968]
[1743353183413,0.4623749,82645.0,82644.0,0.1472968]
[1743353183718,0.4623749,82645.0,82644.0,0.1532968]
[1743353184051,0.4623749,82645.0,82644.0,0.1412968]
[1743353184405,0.4623749,82645.0,82644.0,0.1482968]
[1743353184560,0.4623749,82645.0,82644.0,0.1432968]
[1743353184761,0.4623749,82645.0,82644.0,0.1452968]
[1743353186689,0.44342577,82645.0,82644.0,0.1452968]
[1743353189676,0.46237745,82645.0,82644.0,0.1452968]
[1743353191245,0.4769183,82645.0,82644.0,0.0043368]
[1743353191453,0.8950183,82645.0,82644.0,0.1453368]
[1743353191841,1.01054571,82645.0,82644.0,0.1453368]
[1743353192035,0.554101,82644.0,82643.0,0.576]
[1743353192255,0.677601,82644.0,82643.0,0.576]
[1743353192447,0.254167,82623.0,82619.0,0.576]
[1743353192652,0.012103,82622.0,82620.0,0.141]
[1743353192863,0.73844297,82621.0,82619.0,0.576]
[1743353193009,0.012103,82620.0,82619.0,0.576]
[1743353193353,0.012103,82620.0,82619.0,0.717]
[1743353193556,0.135603,82620.0,82619.0,0.576]
[1743353193757,0.27042868,82620.0,82619.0,0.718]
[1743353194112,0.27042868,82620.0,82619.0,0.576]
[1743353194346,0.27042868,82620.0,82619.0,0.5760464]
[1743353195012,0.15014385,82620.0,82619.0,0.5760464]
[1743353197964,0.15014385,82620.0,82619.0,0.5763832]
[1743353198324,0.56824385,82620.0,82619.0,0.5763832]
[1743353199059,0.553703,82620.0,82619.0,0.5763832]
[1743353199425,0.477503,82620.0,82619.0,0.5763832]
[1743353199591,0.61674521,82620.0,82619.0,0.5763832]
[1743353206406,0.61674521,82620.0,82619.0,0.0003832]
[1743353206615,0.59778783,82620.0,82619.0,0.0003832]
[1743353209915,0.61674581,82620.0,82619.0,0.0003832]
[1743353210138,0.93128666,82620.0,82619.0,0.0003832]
[1743353210344,1.01238666,82620.0,82619.0,0.1413832]
[1743353210523,1.01238666,82620.0,82619.0,0.0003832]
[1743353210780,1.13267149,82620.0,82619.0,0.0003832]
[1743353211421,1.13467149,82620.0,82619.0,0.0003832]
[1743353212737,1.13667149,82620.0,82619.0,0.0003832]
[1743353216976,1.67597849,82620.0,82619.0,0.0003832]
[1743353217380,1.67397849,82620.0,82619.0,0.0003832]
[1743353217605,1.67597849,82620.0,82619.0,0.0003832]
[1743353217938,1.67797849,82620.0,82619.0,0.0003832]
[1743353218144,1.67797849,82620.0,82611.0,0.000337]
[1743353218145,0.559199,82612.0,82611.0,0.000337]
[1743353218465,0.82562468,82612.0,82611.0,0.00047891]
[1743353219872,0.82662468,82612.0,82611.0,0.00047891]
[1743353220404,0.82862468,82612.0,82611.0,0.00047891]
[1743353220758,0.86501568,82612.0,82611.0,0.00047891]
[1743353220974,0.88637087,82612.0,82611.0,0.00047891]
[1743353221376,1.44905609,82612.0,82611.0,0.00047891]
[1743353221973,1.44905609,82612.0,82611.0,9.1e-07]
[1743353222221,0.95459509,82612.0,82611.0,9.1e-07]
[1743353223228,0.95159509,82612.0,82611.0,9.1e-07]
[1743353223458,0.95659509,82612.0,82611.0,9.1e-07]
[1743353223607,0.96059509,82612.0,82611.0,9.1e-07]
[1743353223803,0.95559509,82612.0,82611.0,9.1e-07]
[1743353224031,0.9352399,82612.0,82611.0,9.1e-07]
[1743353224234,0.9402399,82612.0,82611.0,9.1e-07]
[1743353225660,0.9152399,82612.0,82611.0,9.1e-07]
[1743353225878,0.8909781,82612.0,82611.0,9.1e-07]
[1743353226649,1.0183068,82612.0,82611.0,9.1e-07]
[1743353227019,1.13859163,82612.0,82611.0,9.1e-07]
[1743353227250,1.15313248,82612.0,82611.0,9.1e-07]
[1743353227637,1.14813248,82612.0,82611.0,9.1e-07]
[1743353227771,0.81674148,82612.0,82611.0,9.1e-07]
[1743353227975,1.11174148,82612.0,82611.0,9.1e-07]
[1743353228445,1.11674148,82612.0,82611.0,9.1e-07]
[1743353228604,1.10674148,82612.0,82611.0,9.1e-07]
[1743353229012,1.11374148,82612.0,82611.0,9.1e-07]
[1743353229605,1.13270319,82612.0,82611.0,9.1e-07]
[1743353233205,1.13270319,82612.0,82611.0,0.00033791]
[1743353233550,1.13287169,82612.0,82611.0,0.00033791]
[1743353236648,1.11390998,82612.0,82611.0,0.00033791]
[1743353239781,1.13287138,82612.0,82611.0,0.00033791]
[1743353242243,1.01258655,82612.0,82611.0,0.00033791]
[1743353243150,1.01258655,82612.0,82611.0,0.14133791]
[1743353246617,0.73942615,82612.0,82611.0,0.14133791]
[1743353246814,0.7248853,82612.0,82611.0,0.14133791]
[1743353247016,0.7369893,82612.0,82611.0,0.27253791]
[1743353247658,0.7329893,82612.0,82611.0,0.27253791]
[1743353248111,0.7359893,82612.0,82611.0,0.27253791]
[1743353248316,0.7329893,82612.0,82611.0,0.27253791]
[1743353248816,0.82112745,82612.0,82611.0,0.14133791]
[1743353249012,0.8356683,82612.0,82611.0,0.14133791]
[1743353249260,0.8386683,82612.0,82611.0,0.14133791]
[1743353249639,0.8576289,82612.0,82611.0,0.14133791]
[1743353249842,0.8546289,82612.0,82611.0,0.14133791]
[1743353250050,0.8566289,82612.0,82611.0,0.14133791]
[1743353253219,0.8566289,82612.0,82611.0,0.14129791]
[1743353254410,0.012106,82599.0,82598.0,0.000337]
[1743353254646,0.4298228,82599.0,82598.0,0.141297]
[1743353254803,0.51415734,82599.0,82598.0,0.141297]
[1743353255017,1.05629034,82599.0,82598.0,0.141297]
[1743353255210,1.07525253,82599.0,82598.0,0.141297]
[1743353255410,1.19553736,82599.0,82598.0,0.000337]
[1743353255821,1.12574367,82599.0,82598.0,0.000337]
[1743353256028,1.13771656,82599.0,82598.0,0.000337]
[1743353256234,1.13771656,82599.0,82598.0,0.002337]
[1743353256449,1.14668193,82599.0,82598.0,0.002337]
[1743353256649,1.12771974,82599.0,82598.0,0.002337]
[1743353256908,0.99846954,82599.0,82598.0,0.002337]
[1743353257233,0.99846954,82599.0,82598.0,0.003337]
[1743353257647,1.11875437,82599.0,82598.0,0.000337]
[1743353257792,1.12075437,82599.0,82598.0,0.000337]
[1743353257999,1.12275437,82599.0,82598.0,0.000337]
[1743353258389,1.2430392,82599.0,82598.0,0.000337]
[1743353259183,1.25230842,82599.0,82598.0,0.000337]
[1743353259598,1.27127222,82599.0,82598.0,0.000337]
[1743353264029,1.26927222,82599.0,82598.0,0.000337]
[1743353264235,1.27127222,82599.0,82598.0,0.000337]
[1743353264689,1.27527222,82599.0,82598.0,0.000337]
[1743353266621,1.25630842,82599.0,82598.0,0.000337]
[1743353269735,1.27527249,82599.0,82598.0,0.000337]
[1743353270671,2.20088649,82599.0,82598.0,0.000337]
[1743353270849,0.40424685,82598.0,82597.0,2e-07]
[1743353271058,1.50411951,82598.0,82597.0,2e-07]
[1743353271269,0.64481651,82598.0,82597.0,2e-07]
[1743353272109,0.64981651,82598.0,82597.0,2e-07]
[1743353273844,0.65381651,82598.0,82597.0,2e-07]
[1743353274764,1.07153331,82598.0,82597.0,2e-07]
[1743353276411,1.07638631,82598.0,82597.0,2e-07]
[1743353279398,1.07638631,82598.0,82581.0,0.14496]
[1743353279399,0.012108,82584.0,82581.0,0.004]
[1743353279572,0.62410579,82584.0,82581.0,0.004]
[1743353279911,0.62232772,82584.0,82581.0,0.004]
[1743353280465,1.04004452,82584.0,82581.0,0.004]
[1743353280659,1.04018606,82584.0,82581.0,0.004]
[1743353281066,1.05915288,82584.0,82581.0,0.004]
[1743353281430,1.06015288,82584.0,82581.0,0.004]
[1743353282290,1.00665101,82584.0,82583.0,0.0753682]
[1743353285341,0.74993316,82584.0,82583.0,0.0753682]
[1743353285558,0.73782516,82584.0,82583.0,0.1245682]
[1743353285728,0.44993316,82584.0,82583.0,0.1245682]
[1743353286140,0.54699338,82584.0,82583.0,0.1245682]
[1743353286336,0.52802656,82584.0,82583.0,0.1245682]
[1743353287342,0.41885834,82584.0,82583.0,0.3788572]
[1743353288592,0.41785834,82584.0,82583.0,0.3788572]
[1743353288970,0.41885834,82584.0,82583.0,0.3788572]
[1743353289289,0.43782304,82584.0,82583.0,0.3788572]
[1743353290279,0.43782304,82584.0,82583.0,0.49914203]
[1743353290851,0.43682304,82584.0,82583.0,0.49914203]
[1743353291168,0.43782304,82584.0,82583.0,0.49914203]
[1743353292106,0.02010624,82584.0,82583.0,0.49914203]
[1743353293142,0.01910624,82584.0,82583.0,0.49914203]
[1743353293576,0.02010624,82584.0,82583.0,0.49914203]
[1743353294152,0.04110624,82584.0,82583.0,0.49914203]
[1743353295292,0.04110624,82584.0,82583.0,0.64006203]
[1743353296748,0.02214154,82584.0,82583.0,0.64006203]
[1743353297655,0.02214154,82584.0,82583.0,1.21650203]
[1743353297928,0.02114154,82584.0,82583.0,1.21650203]
[1743353298449,0.02114154,82584.0,82583.0,1.21750203]
[1743353298855,0.02114154,82584.0,82583.0,1.21650203]
[1743353299299,0.02114154,82584.0,82583.0,1.21750203]
[1743353299688,0.04010532,82584.0,82583.0,1.21750203]
[1743353300746,0.04010532,82584.0,82583.0,1.07658203]
[1743353300918,0.04010532,82584.0,82583.0,1.21750203]
[1743353301559,0.04010532,82584.0,82583.0,0.7020082]
[1743353301725,0.04010532,82584.0,82583.0,0.8428882]
[1743353301941,0.04010532,82584.0,82583.0,0.8549972]
[1743353305489,0.04010532,82584.0,82583.0,0.97528203]
[1743353306643,0.02114154,82584.0,82583.0,0.97528203]
[1743353309772,0.0401053,82584.0,82583.0,0.97528203]
[1743353316734,0.02114154,82584.0,82583.0,0.97528203]
[1743353321039,0.0401054,82584.0,82583.0,0.97528203]
[1743353322969,0.0401054,82584.0,82583.0,0.97428203]
[1743353323189,0.0401054,82584.0,82583.0,0.97628203]
[1743353326665,0.02114154,82584.0,82583.0,0.97628203]
[1743353327254,0.02114154,82584.0,82583.0,0.97624203]
[1743353328584,0.02114154,82584.0,82583.0,0.91493303]
[1743353329571,0.04010565,82584.0,82583.0,0.91493303]
[1743353334631,0.04010565,82584.0,82583.0,0.83973303]
[1743353336239,0.32507331,82584.0,82583.0,0.5786082]
[1743353336447,0.32507331,82584.0,82583.0,0.7194082]
[1743353336647,0.3061092,82584.0,82583.0,0.7194082]
[1743353337250,0.3061092,82584.0,82583.0,0.7174082]
[1743353337767,0.3071092,82584.0,82583.0,0.7174082]
[1743353338286,0.3071092,82584.0,82583.0,0.5766082]
[1743353338287,1.12006685,82584.0,82583.0,0.5766082]
[1743353338487,1.12006685,82584.0,82583.0,0.0001682]
[1743353338686,1.12206685,82584.0,82583.0,0.0001682]
[1743353338871,1.15846585,82584.0,82583.0,0.0001682]
[1743353339705,1.17743237,82584.0,82583.0,0.0001682]
[1743353340723,1.05150886,82584.0,82583.0,0.0001682]
[1743353340924,1.01510986,82584.0,82583.0,0.0001682]
[1743353341310,1.01996286,82584.0,82583.0,0.0001682]
[1743353342837,1.03450371,82584.0,82583.0,0.0001682]
[1743353345421,1.01996286,82584.0,82583.0,0.0001682]
[1743353345626,1.00099634,82584.0,82583.0,0.0001682]
[1743353346274,0.74671134,82584.0,82583.0,0.0001682]
[1743353346471,0.44185834,82584.0,82583.0,0.2544572]
[1743353347504,0.44185834,82584.0,82583.0,0.3011572]
[1743353348079,0.02414154,82584.0,82583.0,0.3011572]
[1743353348408,0.02314154,82584.0,82583.0,0.3011572]
[1743353348609,0.02314154,82584.0,82583.0,0.30110999]
[1743353349006,0.04210637,82584.0,82583.0,0.30110999]
[1743353349211,0.04010637,82584.0,82583.0,0.30110999]
[1743353351506,0.04010637,82584.0,82583.0,0.00012099]
[1743353351721,0.07338821,82584.0,82583.0,0.00012099]
[1743353351897,0.08549621,82584.0,82583.0,0.14092099]
[1743353353249,0.38727428,82584.0,82583.0,0.00012099]
[1743353353403,0.47643706,82584.0,82583.0,0.00012099]
[1743353353827,0.89415386,82584.0,82583.0,0.00012099]
[1743353354235,0.93945386,82584.0,82583.0,0.00012099]
[1743353354449,1.05973869,82584.0,82583.0,0.00012099]
[1743353355067,1.06273869,82584.0,82583.0,0.00012099]
[1743353356779,1.04377386,82584.0,82583.0,0.00012099]
[1743353357439,0.96737386,82584.0,82583.0,0.00012099]
[1743353357635,0.84708903,82584.0,82583.0,0.00012099]
[1743353359313,0.96737386,82584.0,82583.0,0.00012099]
[1743353359744,0.9863416,82584.0,82583.0,0.00012099]
[1743353360809,0.9853416,82584.0,82583.0,0.00012099]
[1743353361253,0.9873416,82584.0,82583.0,0.00012099]
[1743353361450,0.9853416,82584.0,82583.0,0.00012099]
[1743353361846,0.9883416,82584.0,82583.0,0.00012099]
[1743353363260,0.9886786,82584.0,82583.0,0.00012099]
[1743353365121,0.9935326,82584.0,82583.0,0.00012099]
[1743353366852,0.97456486,82584.0,82583.0,0.00012099]
[1743353369643,0.9935329,82584.0,82583.0,0.00012099]
[1743353371784,0.79466623,82584.0,82583.0,0.00012099]
[1743353376748,0.77569819,82584.0,82583.0,0.00012099]
[1743353378389,0.89598302,82584.0,82583.0,0.00012099]
[1743353378572,0.97388302,82584.0,82583.0,0.00012099]
[1743353379747,0.9928512,82584.0,82583.0,0.00012099]
[1743353379931,1.11013603,82584.0,82583.0,0.00012099]
[1743353380276,1.11313603,82584.0,82583.0,0.00012099]
[1743353380684,1.11813603,82584.0,82583.0,0.00012099]
[1743353382160,1.66763903,82584.0,82583.0,0.00012099]
[1743353382362,1.67263903,82584.0,82583.0,9.9e-07]
[1743353382530,1.17043603,82584.0,82583.0,9.9e-07]
[1743353383110,0.61617285,82569.0,82561.0,0.0003368]
[1743353383239,1.32811268,82569.0,82561.0,0.0003368]
[1743353383441,1.33311268,82569.0,82561.0,0.0003368]
[1743353383645,1.35568533,82569.0,82561.0,0.0003368]
[1743353383867,1.37465536,82569.0,82561.0,0.0003368]
[1743353384038,1.37465536,82569.0,82568.0,2e-07]
[1743353384039,1.94683577,82569.0,82568.0,2e-07]
[1743353384234,1.35818077,82569.0,82568.0,2e-07]
[1743353385452,1.36018077,82569.0,82568.0,2e-07]
[1743353385822,0.55935,82563.0,82561.0,0.0003368]
[1743353386059,0.71553087,82563.0,82561.0,0.0003368]
[1743353386237,1.13717387,82563.0,82561.0,0.0003368]
[1743353387618,1.14617387,82563.0,82561.0,0.0003368]
[1743353387818,1.17274652,82563.0,82561.0,0.0003368]
[1743353388380,1.16774652,82563.0,82561.0,0.0003368]
[1743353389166,1.58546332,82563.0,82561.0,0.0003368]
[1743353389570,1.6044372,82563.0,82561.0,0.0003368]
[1743353390206,1.15643901,82563.0,82561.0,0.0003368]
[1743353390408,1.02161333,82563.0,82561.0,0.0003368]
[1743353390690,1.03615418,82563.0,82561.0,0.0003368]
[1743353394029,0.73615418,82563.0,82561.0,0.0003368]
[1743353394243,0.73615418,82563.0,82562.0,0.1410966]
[1743353394375,1.03615418,82563.0,82562.0,0.1410966]
[1743353395175,1.15643901,82563.0,82562.0,0.2197966]
[1743353396068,1.13386636,82563.0,82562.0,0.2197966]
[1743353396692,1.11489248,82563.0,82562.0,0.2197966]
[1743353397386,0.99460765,82563.0,82562.0,0.1410966]
[1743353399770,1.01357981,82563.0,82562.0,0.1410966]
[1743353399976,1.01357981,82563.0,82551.0,0.004]
[1743353399977,0.554384,82552.0,82551.0,0.004]
[1743353400528,0.56892485,82552.0,82551.0,0.004]
[1743353400862,1.09440964,82552.0,82551.0,0.004]
[1743353401063,1.11338428,82552.0,82551.0,0.004]
[1743353401265,1.11438428,82552.0,82551.0,0.00447317]
[1743353401464,1.11538428,82552.0,82551.0,0.00447317]
[1743353404052,1.12770994,82552.0,82551.0,0.00447317]
[1743353406685,1.1087353,82552.0,82551.0,0.00447317]
[1743353409623,1.12770977,82552.0,82551.0,0.00447317]
[1743353410705,1.2479946,82552.0,82551.0,0.00464177]
[1743353411562,1.2469946,82552.0,82551.0,0.00464177]
[1743353411767,1.2469946,82552.0,82551.0,0.0001686]
[1743353411964,1.2499946,82552.0,82551.0,0.0001686]
[1743353412215,1.27250138,82552.0,82551.0,0.0001686]
[1743353412396,1.27150138,82552.0,82551.0,0.0001686]
[1743353412721,1.27550138,82552.0,82551.0,0.0001686]
[1743353414180,0.55439,82550.0,82549.0,0.0003366]
[1743353414420,0.72308771,82550.0,82549.0,0.0003366]
[1743353414887,0.56893085,82550.0,82549.0,0.0003366]
[1743353415168,0.55439,82550.0,82549.0,0.0818366]
[1743353415415,0.59143763,82550.0,82549.0,0.0818366]
[1743353415654,0.57689678,82550.0,82549.0,0.0818366]
[1743353415901,0.57989678,82550.0,82549.0,0.0818366]
[1743353416135,0.55739,82550.0,82549.0,0.07736343]
[1743353416372,0.57193085,82550.0,82549.0,0.07736343]
[1743353416579,0.57493085,82550.0,82549.0,0.07736343]
[1743353417354,0.57493085,82550.0,82549.0,0.50589543]
[1743353417355,0.006,82550.0,82549.0,0.50589543]
[1743353417852,0.006,82550.0,82549.0,0.49814226]
[1743353418099,0.006,82550.0,82549.0,0.49366909]
[1743353418329,0.006,82550.0,82549.0,0.51815849]
[1743353418783,0.003,82550.0,82549.0,0.51815849]
[1743353419005,0.004,82550.0,82549.0,0.51815849]
[1743353419213,0.004,82550.0,82549.0,0.11899026]
[1743353419214,0.001,82550.0,82549.0,0.11899026]
[1743353419433,0.01454085,82550.0,82549.0,0.25975026]
[1743353419638,0.07317146,82550.0,82549.0,0.25975026]
[1743353419846,0.04584862,82550.0,82549.0,0.25975026]
[1743353420358,0.05796162,82550.0,82549.0,0.25975026]
[1743353420496,0.0804552,82550.0,82549.0,0.25975026]
[1743353421289,0.05796162,82550.0,82549.0,0.25975026]
[1743353422130,0.05796162,82550.0,82549.0,0.11899026]
[1743353422325,0.11627614,82550.0,82549.0,0.25975026]
[1743353422691,0.05796162,82550.0,82549.0,0.25975026]
[1743353423121,0.30023862,82550.0,82549.0,0.25975026]
[1743353423824,0.32273163,82550.0,82549.0,0.25991886]
[1743353424107,0.08045463,82550.0,82549.0,0.25991886]
[1743353424325,0.32273163,82550.0,82549.0,0.25991886]
[1743353424954,0.44301646,82550.0,82549.0,0.25991886]
[1743353425143,0.20073946,82550.0,82549.0,0.25991886]
[1743353425340,0.05380078,82550.0,82549.0,0.25991886]
[1743353426291,0.29607778,82550.0,82549.0,0.25991886]
[1743353426518,0.05380078,82550.0,82549.0,0.25991886]
[1743353426684,0.03482908,82550.0,82549.0,0.25991886]
[1743353426877,0.28921908,82550.0,82549.0,0.25991886]
[1743353427074,0.26672607,82550.0,82549.0,0.25991886]
[1743353428573,0.02444907,82550.0,82549.0,0.25991886]
[1743353429642,5.63456614,82550.0,82549.0,0.0001686]
[1743353429841,6.1707897,82550.0,82549.0,0.0001686]
[1743353430865,6.1757897,82550.0,82549.0,0.0001686]
[1743353431214,6.18694541,82550.0,82549.0,0.0001686]
[1743353432171,6.19194541,82550.0,82549.0,0.0001686]
[1743353432386,6.21663091,82550.0,82549.0,0.0001686]
[1743353432615,0.012114,82544.0,82543.0,0.0001683]
[1743353432831,0.254427,82538.0,82537.0,0.0001686]
[1743353433050,0.56898085,82534.0,82533.0,0.11536555]
[1743353433225,5.68926568,82534.0,82533.0,0.11536555]
[1743353433443,5.70030405,82534.0,82533.0,4.725e-05]
[1743353433569,5.83956766,82534.0,82533.0,4.725e-05]
[1743353434025,5.83956766,82534.0,82521.0,0.004]
[1743353434026,0.554455,82529.0,82521.0,0.004]
[1743353434260,0.56901685,82522.0,82521.0,0.004]
[1743353434433,2.34909268,82522.0,82521.0,0.004]
[1743353434638,2.4691029,82522.0,82521.0,0.004]
[1743353434838,2.4191029,82522.0,82521.0,0.004]
[1743353435034,2.43808483,82522.0,82521.0,0.004]
[1743353435251,2.21571983,82522.0,82521.0,0.004]
[1743353435639,1.24938583,82522.0,82521.0,0.004]
[1743353435857,1.25138583,82522.0,82521.0,0.0041685]
[1743353436237,0.60091772,82522.0,82521.0,0.0041685]
[1743353436650,0.58193579,82522.0,82521.0,0.0041685]
[1743353436847,0.58393579,82522.0,82521.0,0.0041685]
[1743353438186,0.70422062,82522.0,82521.0,0.0041685]
[1743353438938,2.45335142,82522.0,82521.0,0.0041685]
[1743353439134,2.48698925,82522.0,82521.0,0.0041685]
[1743353439637,2.50397171,82522.0,82521.0,0.0041685]
[1743353440052,2.06353971,82522.0,82521.0,0.0041685]
[1743353440271,2.06753971,82522.0,82521.0,0.0041685]
[1743353440524,0.554495,82516.0,82512.0,0.14072]
[1743353440695,0.59039104,82516.0,82512.0,0.14072]
[1743353440901,0.60135506,82516.0,82514.0,0.0001686]
[1743353441688,0.60335506,82516.0,82514.0,0.0001686]
[1743353441911,0.60535506,82516.0,82514.0,0.0001686]
[1743353442536,1.29441006,82516.0,82514.0,0.0001686]
[1743353443814,0.71534506,82516.0,82514.0,0.0001686]
[1743353444657,1.13306186,82516.0,82514.0,0.0001686]
[1743353445237,1.25334669,82516.0,82514.0,0.0001686]
[1743353446766,1.25049969,82516.0,82514.0,0.0001686]
[1743353447080,1.13935669,82516.0,82514.0,0.0001686]
[1743353447379,1.35969269,82516.0,82514.0,0.0001686]
[1743353448280,1.25292469,82516.0,82514.0,0.0001686]
[1743353449846,1.2719082,82516.0,82514.0,0.0001686]
[1743353451938,1.1673402,82516.0,82514.0,0.0001686]
[1743353452131,1.2738842,82516.0,82514.0,0.0001686]
[1743353452688,1.1673402,82516.0,82514.0,0.0001686]
[1743353452895,1.01115933,82516.0,82514.0,0.0001686]
[1743353453719,1.02570018,82516.0,82514.0,0.0001686]
[1743353454427,1.02570018,82516.0,82500.0,0.0011685]
[1743353454428,0.554542,82501.0,82500.0,0.0011685]
[1743353454743,0.56910985,82492.0,82481.0,0.1289]
[1743353454946,6.10711148,82492.0,82483.0,0.1408]
[1743353455120,6.23814763,82492.0,82483.0,0.1408]
[1743353455303,0.554588,82486.0,82472.0,0.1408]
[1743353455513,2.97362248,82486.0,82485.0,5e-07]
[1743353455715,1.17240334,82486.0,82485.0,5e-07]
[1743353455959,1.17240334,82486.0,82485.0,0.00014128]
[1743353455960,1.16740334,82486.0,82485.0,0.00014128]
[1743353456161,1.11782187,82486.0,82485.0,0.00014128]
[1743353456752,1.15918781,82486.0,82485.0,0.00014128]
[1743353456949,2.10586258,82486.0,82485.0,0.00014128]
[1743353457145,2.06702858,82486.0,82485.0,0.00014128]
[1743353457715,2.07202858,82486.0,82485.0,0.00014128]
[1743353457918,1.15019558,82486.0,82485.0,0.00014128]
[1743353458119,2.16156141,82486.0,82485.0,0.00014128]
[1743353458844,2.13377141,82486.0,82485.0,0.00014128]
[1743353459226,1.52269841,82486.0,82485.0,0.00014128]
[1743353459614,1.54168995,82486.0,82485.0,0.00014128]
[1743353460556,1.54168995,82486.0,82466.0,0.0775686]
[1743353460557,0.012124,82480.0,82466.0,0.0775686]
[1743353460765,2.22975496,82480.0,82479.0,5e-07]
[1743353460966,0.84543851,82480.0,82479.0,5e-07]
[1743353461577,0.85043851,82480.0,82479.0,5e-07]
[1743353461892,0.87781222,82480.0,82479.0,5e-07]
[1743353462095,0.88713323,82480.0,82479.0,5e-07]
[1743353462514,0.554647,82467.0,82466.0,0.0001686]
[1743353462719,4.33753717,82467.0,82466.0,0.0001686]
[1743353462925,2.93068284,82467.0,82466.0,0.0001686]
[1743353463131,0.554699,82450.0,82447.0,0.1024]
[1743353463339,0.98695615,82450.0,82447.0,0.1024]
[1743353463533,0.9975055,82450.0,82447.0,0.1024]
[1743353463738,1.1760058,82450.0,82447.0,0.1024]
[1743353463948,1.07091202,82450.0,82447.0,0.1024]
[1743353464578,1.09004965,82450.0,82447.0,0.1024]
[1743353464782,0.012128,82448.0,82447.0,0.08117175]
[1743353464988,0.012128,82448.0,82447.0,0.00377175]
[1743353464989,0.7298443,82448.0,82447.0,0.00377175]
[1743353465194,2.14057419,82448.0,82447.0,0.00377175]
[1743353465405,1.71631919,82448.0,82447.0,0.00377175]
[1743353465610,0.75493753,82448.0,82447.0,0.00377175]
[1743353465996,0.78404187,82448.0,82447.0,0.00377175]
[1743353466430,5.9043267,82448.0,82447.0,0.00377175]
[1743353466643,5.96254217,82448.0,82447.0,0.00377175]
[1743353466861,6.087827,82448.0,82447.0,7.5e-07]
[1743353467060,0.254785,82422.0,82421.0,0.00416685]
[1743353467295,0.3,82429.0,82421.0,0.13658368]
[1743353467509,0.012131,82427.0,82422.0,0.12028483]
[1743353467710,0.06941644,82422.0,82421.0,0.00416685]
[1743353468315,0.06941644,82422.0,82421.0,0.08156685]
[1743353468521,0.06955763,82422.0,82421.0,0.08156685]
[1743353468720,0.05835666,82422.0,82421.0,0.08156685]
[1743353468931,0.05935666,82422.0,82421.0,0.08156685]
[1743353469135,0.05935666,82422.0,82421.0,0.23408685]
[1743353469762,0.86096233,82422.0,82421.0,0.08156685]
[1743353469973,2.37722403,82422.0,82421.0,0.00416685]
[1743353470178,3.56681288,82422.0,82421.0,0.00416685]
[1743353470380,4.75640173,82422.0,82421.0,0.00416685]
[1743353470677,5.72201821,82422.0,82421.0,0.00416685]
[1743353470900,5.59284075,82422.0,82421.0,0.00416685]
[1743353471178,5.59684075,82422.0,82421.0,0.00416685]
[1743353471521,1.18663518,82422.0,82421.0,0.00416685]
[1743353471781,1.19163518,82422.0,82421.0,0.00416685]
[1743353471949,1.19663518,82422.0,82421.0,0.00433545]
[1743353472354,1.20768677,82422.0,82421.0,0.00433545]
[1743353472705,1.7456879,82422.0,82421.0,0.00433545]
[1743353472921,1.76469112,82422.0,82421.0,0.00433545]
[1743353473117,1.75969112,82422.0,82421.0,0.00433545]
[1743353473326,1.76898398,82422.0,82421.0,0.00433545]
[1743353473519,1.89426881,82422.0,82421.0,0.00433545]
[1743353474186,1.64440629,82422.0,82421.0,0.00433545]
[1743353474785,1.80949093,82422.0,82421.0,0.00433545]
[1743353475082,1.80949093,82422.0,82410.0,0.00081]
[1743353475083,0.25482,82411.0,82410.0,0.00081]
[1743353475327,0.56579062,82411.0,82410.0,0.00081]
[1743353475514,1.0128283,82411.0,82410.0,0.00081]
[1743353475928,0.9226742,82411.0,82410.0,0.00081]
[1743353476347,0.98066882,82411.0,82410.0,0.00081]